Cogmind - Beta 15 @@@ ROGUE MODE // 2025.08.02 @ 16:18:46 Player: Cracklepappy Result: Self-destructed Performance ------------- Evolutions (3) 1500 Regions Visited (11) 2200 Robots Destroyed (121) 605 Value Destroyed (5543) 5543 Prototype IDs (16) 320 Alien Tech Used (0) 0 Bonus (546) 546 TOTAL SCORE: 10714 Bonus ------- High Alert Combat Kills 530 Follower Combat Kills 517 Entered Garrisons 400 Entered DSFs 500 Friendly Fire -1401 Cogmind --------- Core Integrity 130/700 Matter 158/300 Energy 290/290 System Corruption 1% Temperature Cool (0) Movement Hovering (1205) Ox14 Location -7/DSF Parts ------- > --- POWER (1) -------- Reinforced Deuterium Engine > --- PROPULSION (3) --- Compact Wheel Backup Propulsion III > --- UTILITY (4) ------ Improved Heat Sink Huge Storage Unit Advanced Targeting Computer Hacking Suite > --- WEAPON (5) ------- Autogun Autogun Heavy Battle Rifle Heavy Machine Gun KE Penetrator > --- INVENTORY (25) --- Heavy Deuterium Engine Neutrino Core Light Quantum Reactor Improved Heat Sink Improved Heat Sink Seismic Detector Improved Weapon Cycler Improved Light Armor Plating Heavy Reflective Plating Remote Force Field Improved Corruption Screen Tractor Beam Gatling Laser Gatling Laser Gatling Laser Disruptor Cannon Heavy Assault Rifle Autogun Autogun Autogun Flak Gun Mass Driver Great Maul Peak State ------------ > --- POWER ------------ Reinforced Deuterium Engine > --- PROPULSION ------- Compact Wheel Compact Wheel Armored Wheel > --- UTILITY ---------- Huge Storage Unit Improved Weapon Cycler Hardened Medium Armor Plating Remote Force Field > --- WEAPON ----------- Battle Rifle Heavy Battle Rifle Heavy Battle Rifle Heavy Battle Rifle Heavy Battle Rifle > --- INVENTORY -------- Heavy Deuterium Engine Light Angular Momentum Engine Wheel Wheel Compact Wheel Compact Wheel Heat Sink Improved Heat Sink Advanced Terrain Scan Processor Hardened Light Armor Plating Hardened Light Armor Plating Hardened Medium Armor Plating Heavy Reflective Plating Hacking Suite Tractor Beam Backup Laser III Beamcaster Beamcaster Beamcaster Beamcaster Heavy Ion Cannon Battle Rifle Slug Cannon Slug Cannon [Rating: 50] Favorites ----------- Power Ion Engine Engine Ion Engine Reactor Antimatter Reactor Propulsion Wheel Wheel Wheel Hover Unit Backup Propulsion III Utility Light Armor Plating Device Improved Heat Sink Storage Huge Storage Unit Processor Advanced Targeting Computer Hackware Hacking Suite Protection Light Armor Plating Weapon Autogun Energy Gun Gatling Laser Energy Cannon Subdweller Beam Cannon Ballistic Gun Autogun Ballistic Cannon Light Cannon Launcher Rocket Launcher Special Weapon Mining Laser Impact Weapon Great Maul Slashing Weapon Makeshift Axe Special Melee Weapon Datajack Build | -11 -10 -10 -10 -8 -8 -7 -7 -7 -7 -7 -7 ------- Run | Yrd Mat Min Sub Mat Gar Fac Was Fac Gar Fac DSF Slots Evolved 6 | . . . . 4 . 2 . . . . . Power . | . . . . . . . . . . . . Propulsion 1 | . . . . . . 1 . . . . . Utility 2 | . . . . 1 . 1 . . . . . Weapon 3 | . . . . 3 . . . . . . . Parts Attached 110 | 7 10 . 10 7 21 4 17 8 22 . 4 Power 8 | 1 . . . 1 2 . 1 2 1 . . Engine 7 | 1 . . . 1 2 . . 2 1 . . Core . | . . . . . . . . . . . . Reactor 1 | . . . . . . . 1 . . . . Propulsion 22 | 2 3 . 2 1 6 . 4 . 4 . . Treads . | . . . . . . . . . . . . Leg . | . . . . . . . . . . . . Wheel 22 | 2 3 . 2 1 6 . 4 . 4 . . Hover . | . . . . . . . . . . . . Flight . | . . . . . . . . . . . . Utility 31 | 2 3 . 1 3 5 1 4 6 6 . . Device 13 | 1 . . . 1 1 1 3 3 3 . . Storage 6 | 1 2 . . 1 2 . . . . . . Processor 2 | . . . . . . . . 1 1 . . Hackware 1 | . . . . . . . . 1 . . . Protection 9 | . 1 . 1 1 2 . 1 1 2 . . Artifact . | . . . . . . . . . . . . Weapon 49 | 2 4 . 7 2 8 3 8 . 11 . 4 Energy Gun 6 | 2 . . . . 1 . 1 . 2 . . Energy Cannon 3 | . . . . 1 . . 1 . 1 . . Ballistic Gun 24 | . . . 3 1 5 2 5 . 4 . 4 Ballistic Cannon 9 | . 4 . 2 . . . 1 . 2 . . Launcher 1 | . . . . . 1 . . . . . . Special Weapon 1 | . . . 1 . . . . . . . . Impact Weapon 2 | . . . . . . . . . 2 . . Slashing Weapon 2 | . . . 1 . 1 . . . . . . Piercing Weapon . | . . . . . . . . . . . . Special Melee Weapon 1 | . . . . . . 1 . . . . . Unidentified Prototypes 1 | . . . . . . . . 1 . . . Parts Lost 26 | . . . 1 1 6 . 5 . 10 . 3 Power 2 | . . . . . . . 1 . 1 . . Propulsion 10 | . . . . 1 2 . 1 . 4 . 2 Utility 3 | . . . 1 . 1 . 1 . . . . Weapon 11 | . . . . . 3 . 2 . 5 . 1 Highest Loss Streak 8 | . . . 1 1 3 . 2 . 8 . 3 To Critical Strikes . | . . . . . . . . . . . . Average Backups 18 | 3 13 15 14 19 21 19 15 24 23 24 23 Power 1 | . . . . . 1 1 1 2 3 4 3 Propulsion 3 | 3 4 4 3 2 4 4 1 2 1 . . Utility 6 | . 1 3 1 7 7 6 6 10 11 10 9 Weapon 7 | . 6 7 8 8 6 5 5 8 7 10 10 Tool/Special . | . . . . . . . . . . . . Unused Backups 64 | 2 7 1 4 2 9 1 9 3 12 . 14 Power 6 | . . . . . . 1 1 1 1 . 2 Propulsion 10 | 2 5 . . . 3 . . . . . . Utility 25 | . . . 1 1 4 . 4 2 7 . 6 Weapon 21 | . 2 1 2 1 2 . 3 . 4 . 6 Tool/Special 2 | . . . 1 . . . 1 . . . . Average Slot Usage (%) 97 | . 99 100 100 97 99 98 76 100 99 100 93 Engine 9 | . 14 14 14 9 9 7 5 7 6 7 7 Wheel 23 | . 28 28 28 17 17 22 21 23 22 23 17 Device 8 | . 9 . . 7 10 22 8 15 13 7 7 Storage 10 | . 14 14 14 9 9 7 6 7 7 7 7 Hackware 1 | . . . . . . . . . 7 7 7 Protection 7 | . 4 14 14 9 7 . 3 5 . . . Energy Gun 1 | . . . . . . . 3 . 8 15 5 Ballistic Gun 19 | . . . 4 17 35 34 22 38 22 23 30 Ballistic Cannon 11 | . 27 28 21 18 4 . . . 2 . . Peak Build Rating 50 | 7 8 9 13 21 31 35 44 50 47 44 46 Average Rating 24 | 5 7 8 10 20 26 33 31 44 42 44 43 On Entrance 24 | . 7 8 9 11 21 31 34 42 46 44 44 Naked Turns 59 | . . . . . . . 59 . . . . Heaviest Build 130 | 14 34 34 35 111 111 68 113 130 126 114 116 Greatest Support 44 | 20 20 20 20 20 24 36 44 44 44 42 42 Greatest Overweight (x) 7 | . 1 1 1 5 5 2 2 2 3 2 7 Average Overweight (x) 1 | . . 1 1 4 2 1 1 2 2 2 2 Largest Inventory Capacity 25 | 8 15 15 15 25 25 20 25 25 25 25 25 Average Capacity 19 | 7 13 15 15 22 21 20 22 25 25 25 25 Most Carried 25 | 8 15 15 15 25 25 20 25 25 25 25 25 Average Carried 18 | 4 13 15 14 19 21 19 16 24 24 25 24 Final Capacity 25 | 8 15 15 15 25 20 20 25 25 25 25 25 Final Carried 25 | 8 15 15 15 25 20 20 25 25 25 25 24 Class Distribution -------------------- 39% | Mutant 20% | Scavenger-Gunner 19% | Scavenger-Tank 13% | Derelict-Tank Dominant Class ---------------- Mutant | -10/Materials Mutant | -10/Mines Mutant | -10/Subcaves Scavenger-Tank | -8/Materials Scavenger-Tank | -8/Garrison Scavenger-Gunner | -7/Factory Derelict-Tank | -7/Waste Derelict-Tank | -7/Factory Scavenger-Gunner | -7/Garrison Scavenger-Gunner | -7/Factory Scavenger-Gunner | -7/DSF Resources | -11 -10 -10 -10 -8 -8 -7 -7 -7 -7 -7 -7 ----------- Run | Yrd Mat Min Sub Mat Gar Fac Was Fac Gar Fac DSF Matter Collected 5573 | 270 564 101 796 315 1740 29 365 245 1137 . 11 Remotely . | . . . . . . . . . . . . Salvage Created 5275 | 154 659 . 492 304 1596 29 133 576 1219 . 113 Parts 261 | 19 45 . 31 20 54 4 9 17 48 . 14 Haulers Intercepted 3 | . 2 . . . . . . 1 . . . Recyclers Shooed 3 | . . . . . . . . 3 . . . Parts Field Recycled . | . . . . . . . . . . . . Retrieved Matter . | . . . . . . . . . . . . Parts Self-Destructed 5 | . . . 5 . . . . . . . . Prevented . | . . . . . . . . . . . . Kills | -11 -10 -10 -10 -8 -8 -7 -7 -7 -7 -7 -7 ------- Run | Yrd Mat Min Sub Mat Gar Fac Was Fac Gar Fac DSF Combat Hostiles Destroyed 85 | . 14 . 10 4 26 . . 2 27 . 2 Guns 48 | . . . 3 1 17 . . 2 23 . 2 Cannons 37 | . 14 . 7 3 9 . . . 4 . . Classes Destroyed 19 | 2 5 . 3 2 2 . 1 1 2 . 1 Worker 8 | . 4 . . 1 . 2 . 1 . . . Tunneler 5 | 5 . . . . . . . . . . . Hauler 3 | . 2 . . . . . . 1 . . . Recycler 10 | 1 1 . . 2 . . . 6 . . . Mechanic 1 | . . . . . . . . 1 . . . Operator 1 | . . . . 1 . . . . . . . Watcher 3 | . 2 . . . 1 . . . . . . Swarmer 19 | . 3 . . . 5 . . 1 10 . . Grunt 32 | . 11 . . 2 12 . . 1 6 . . Brawler 1 | . . . . . . . . . 1 . . Sentry 15 | . . . . 2 6 . . . 7 . . Specialist 4 | . . . . . 1 . . . 2 . 1 Hunter 2 | . . . . . 2 . . . . . . Programmer 1 | . . . . . . . . . 1 . . Heavy 1 | . . . . . . . . . . . 1 Artisan 3 | . . . 3 . . . . . . . . Cobbler 1 | . . . 1 . . . . . . . . Subdweller 10 | . . . 10 . . . . . . . . Wasp 2 | . . . . . . . 2 . . . . Thug 1 | . . . . . . . . . 1 . . Martyr 2 | . . . . . . . 2 . . . . Best Kill Streak 10 | 6 5 . 2 2 6 2 . 2 10 . 1 Combat Bots Only 10 | . 5 . 2 2 6 . . 2 10 . 1 Max Kills in Single Turn 2 | 1 2 . 1 1 1 2 2 1 2 . 1 Gunslinging 1 | . . . . . . . . . 1 . . Exploded . | . . . . . . . . . . . . Melee . | . . . . . . . . . . . . Uniques/NPCs Destroyed . | . . . . . . . . . . . . Combat | -11 -10 -10 -10 -8 -8 -7 -7 -7 -7 -7 -7 -------- Run | Yrd Mat Min Sub Mat Gar Fac Was Fac Gar Fac DSF Hostile Shots Fired 658 | . 31 . 24 9 133 . 5 7 443 . 6 Missed 211 | . 5 . 6 2 30 . . 1 166 . 1 Hits 447 | . 26 . 18 7 103 . 5 6 277 . 5 Melee 5 | . . . . . . . 5 . . . . Projectile 442 | . 26 . 18 7 103 . . 6 277 . 5 Critical Strikes 9 | . . . 1 . 6 . 1 . . . 1 Damage Taken 5374 | . 269 . 500 115 1524 . 213 67 2448 . 238 Core 912 | . 33 . 107 . 202 . 107 26 431 . 6 Absorbed by Shields 88 | . . . . . . . 17 32 39 . . Regen/Repaired (Parts) 467 | . . . . . . . . 25 442 . . Core Remaining (%) 69 | 100 . . 44 . 63 . . . . . . Volleys Fired 356 | 11 44 . 85 18 77 1 12 31 71 . 6 Largest 5 | 2 2 . 2 5 5 4 5 5 5 . 5 Hottest 239 | 90 60 . 100 200 200 97 207 157 239 . 239 Shots Fired 1004 | 22 90 . 122 49 305 4 44 55 285 . 28 Gun 701 | 22 . . 26 16 251 4 41 55 258 . 28 Cannon 277 | . 90 . 70 33 54 . 3 . 27 . . Launcher . | . . . . . . . . . . . . Special 26 | . . . 26 . . . . . . . . Kinetic 859 | . 90 . 96 32 283 4 32 55 241 . 26 Thermal 145 | 22 . . 26 17 22 . 12 . 44 . 2 Explosive . | . . . . . . . . . . . . Electromagnetic . | . . . . . . . . . . . . Robot Hit Streak 11 | 5 6 . 9 11 10 4 5 11 11 . 9 Robot Miss Streak 11 | 2 5 . 4 3 6 . 5 3 11 . 2 Penetration Max 1 | . . . . . . 1 . . . . . Secondary Targets 12 | . . . . . 2 . . 1 9 . . Max Gunslinging Chain 1 | . . . . . 1 . . 1 1 . . Shots Hit Robots 522 | 11 40 . 48 26 166 12 16 34 153 . 16 Core Hits 233 | 7 25 . 25 11 64 2 14 16 64 . 5 Critical Kills 6 | . . . 1 . 1 . 1 2 1 . . Critical Parts Destroyed 2 | . . . . . . . . 1 1 . . Critical Strikes 23 | 2 2 . 4 . 5 . 4 3 3 . . Burn 5 | 2 . . . . . . 3 . . . . Destroy 9 | . . . 1 . 1 . 1 3 3 . . Blast 6 | . 2 . 3 . 1 . . . . . . Sever 3 | . . . . . 3 . . . . . . Melee Attacks 81 | . . . 2 . 44 11 . . 24 . . Impact 24 | . . . . . . . . . 24 . . Slashing 46 | . . . 2 . 44 . . . . . . Piercing . | . . . . . . . . . . . . Sneak Attacks 12 | . . . 1 . . 11 . . . . . Combat Hostiles . | . . . . . . . . . . . . Follow-up Attacks . | . . . . . . . . . . . . Damage Inflicted 11140 | 129 751 . 1004 567 3818 35 772 584 3165 . 315 Guns 7031 | 129 . . 311 151 1881 35 772 584 2853 . 315 Cannons 2534 | . 751 . 595 416 460 . . . 312 . . Explosions . | . . . . . . . . . . . . Melee 1551 | . . . 74 . 1477 . . . . . . Ramming . | . . . . . . . . . . . . Kinetic 8348 | . 751 . 906 317 2284 35 627 584 2574 . 270 Thermal 1241 | 129 . . 24 250 57 . 145 . 591 . 45 Explosive . | . . . . . . . . . . . . Electromagnetic . | . . . . . . . . . . . . Impact . | . . . . . . . . . . . . Slashing 1551 | . . . 74 . 1477 . . . . . . Piercing . | . . . . . . . . . . . . Highest Corruption 1 | . 1 1 1 . . . . . 1 1 1 Average Corruption 1 | . 1 1 1 . . . . . 1 1 1 Corruption Purged . | . . . . . . . . . . . . Corruption Blocked . | . . . . . . . . . . . . Effects 31 | . 8 3 15 . . . . . 5 . . Message Errors 5 | . 1 2 2 . . . . . . . . Matter Fused 6 | . 1 . 3 . . . . . 2 . . Heat Flow Errors 6 | . 3 . 3 . . . . . . . . Energy Discharges 3 | . . . . . . . . . 3 . . Parts Fused 1 | . . . 1 . . . . . . . . Data Loss (minor) 5 | . . . 5 . . . . . . . . Data Loss (major) 1 | . 1 . . . . . . . . . . Misfires 3 | . 2 . 1 . . . . . . . . Alerts 1 | . . 1 . . . . . . . . . Overload Shots . | . . . . . . . . . . . . Overflow Damage 73 | . . . . . 73 . . . . . . Projectiles . | . . . . . . . . . . . . Explosions . | . . . . . . . . . . . . Melee 73 | . . . . . 73 . . . . . . Knockbacks 11 | . 4 . 2 2 3 . . . . . . Impact . | . . . . . . . . . . . . Kinetic 11 | . 4 . 2 2 3 . . . . . . Secondary . | . . . . . . . . . . . . Self-Inflicted Damage . | . . . . . . . . . . . . Shots . | . . . . . . . . . . . . Rammed . | . . . . . . . . . . . . Targets Rammed . | . . . . . . . . . . . . Kicked . | . . . . . . . . . . . . Crushed . | . . . . . . . . . . . . Highest Temperature 324 | 90 283 . 226 283 324 . 90 81 309 . 63 Average Temperature 95 | 36 94 . 89 84 104 . 39 32 114 . 32 Received Heat Transfer 1348 | . 117 . 102 54 603 . . 4 468 . . Effects 2 | . 1 . . 1 . . . . . . . Energy Bleed 2 | . 1 . . 1 . . . . . . . Siege Activations . | . . . . . . . . . . . . Martial Activations . | . . . . . . . . . . . . Shielding Activations . | . . . . . . . . . . . . Robots Disrupted . | . . . . . . . . . . . . Combat Hostiles . | . . . . . . . . . . . . Robots Corrupted . | . . . . . . . . . . . . Combat Hostiles . | . . . . . . . . . . . . Parts Fried . | . . . . . . . . . . . . Impact Corruptions . | . . . . . . . . . . . . Robots Melted . | . . . . . . . . . . . . Combat Hostiles . | . . . . . . . . . . . . Parts Melted 5 | 1 . . . . . . . . 4 . . Heat Transferred 2744 | 483 . . 50 333 74 . 481 . 1223 . 100 Parts Sabotaged . | . . . . . . . . . . . . Parts Stolen . | . . . . . . . . . . . . Parts Stripped . | . . . . . . . . . . . . Power Chain Reactions . | . . . . . . . . . . . . Alert | -11 -10 -10 -10 -8 -8 -7 -7 -7 -7 -7 -7 ------- Run | Yrd Mat Min Sub Mat Gar Fac Was Fac Gar Fac DSF Maximum Alert Level 4 | . . . . . 4 2 . 1 4 2 2 Low Security (%) 54 | 100 100 100 . 100 8 . 100 87 11 . . Level 1 8 | . . . . . 14 59 . 12 7 . . Level 2 16 | . . . . . 29 40 . . 33 100 100 Level 3 17 | . . . . . 35 . . . 43 . . Level 4 3 | . . . . . 12 . . . 3 . . Level 5 . | . . . . . . . . . . . . High Security . | . . . . . . . . . . . . Max Security . | . . . . . . . . . . . . Peak Influence 1165 | 10 156 42 . 44 1165 611 115 368 1147 602 441 Initial 611 | . . 42 . . 9 611 115 . 185 602 421 Average 337 | 2 102 4 . 8 680 418 7 40 671 602 436 Influence Increases 3889 | 30 528 . . 176 1236 40 25 522 1292 . 40 Destroy 0b10 Robot/C 1680 | . 280 . . 80 540 . . 140 600 . 40 Destroy 0b10 Robot/NC 205 | 30 45 . . 20 35 10 . 60 5 . . Destroy Leader 204 | . 78 . . 20 40 . . 36 30 . . Allied During Kill 359 | . . . . . 3 2 . 236 118 . . Successful Hack 126 | . 30 . . 4 30 28 . 16 18 . . Select Force Hacks 30 | . 30 . . . . . . . . . . Disable Machine 135 | . 30 . . 30 15 . . 30 30 . . Anti-Garrison Action 850 | . . . . . 450 . . . 400 . . Destroy Structure 195 | . 5 . . 7 78 . 25 4 76 . . Lose Combat Pursuer 105 | . 30 . . 15 45 . . . 15 . . Influence Decreases 3458 | 30 418 110 . 161 86 874 356 257 410 545 211 Entered New Map 1650 | . . 68 . . 6 554 216 . 80 545 181 Time Decay 1053 | 30 418 42 . 151 . 170 65 177 . . . Lost Part 210 | . . . . 10 60 . 10 . 100 . 30 Lost Ally 395 | . . . . . 20 . 65 80 230 . . Purge Threat 150 | . . . . . . 150 . . . . . Squads Dispatched 12 | . 4 1 . . . 1 . 5 . . 1 Investigation 7 | . 4 1 . . . . . 2 . . . Extermination 2 | . . . . . . 1 . 1 . . . Reinforcement 1 | . . . . . . . . . . . 1 Assault . | . . . . . . . . . . . . Garrison 2 | . . . . . . . . 2 . . . Intercept . | . . . . . . . . . . . . Searches Triggered . | . . . . . . . . . . . . Construction Impeded . | . . . . . . . . . . . . Haulers Reinforced . | . . . . . . . . . . . . Active Scanning Responses . | . . . . . . . . . . . . Cargo Convoy Interrupts . | . . . . . . . . . . . . Stealth | -11 -10 -10 -10 -8 -8 -7 -7 -7 -7 -7 -7 --------- Run | Yrd Mat Min Sub Mat Gar Fac Was Fac Gar Fac DSF Distress Signals 4 | . 1 . . 2 1 . . . . . . Communications Jammed . | . . . . . . . . . . . . Distress Signals . | . . . . . . . . . . . . Times Spotted 128 | . 22 . 15 12 33 . 5 10 30 . 1 Peak Tracking Total 9 | . 7 . 2 4 8 . 4 3 9 . 1 Tactical Retreats 5 | . 2 . . 1 1 . . . 1 . . Traps | -11 -10 -10 -10 -8 -8 -7 -7 -7 -7 -7 -7 ------- Run | Yrd Mat Min Sub Mat Gar Fac Was Fac Gar Fac DSF Traps Triggered 27 | . 1 . 1 . 11 1 . . 13 . . Indirectly . | . . . . . . . . . . . . Trap Hack Attempts . | . . . . . . . . . . . . Triggered . | . . . . . . . . . . . . Disarmed . | . . . . . . . . . . . . Reprogrammed . | . . . . . . . . . . . . Reused . | . . . . . . . . . . . . Traps Extracted . | . . . . . . . . . . . . Installed . | . . . . . . . . . . . . Triggered . | . . . . . . . . . . . . Machines | -11 -10 -10 -10 -8 -8 -7 -7 -7 -7 -7 -7 ---------- Run | Yrd Mat Min Sub Mat Gar Fac Was Fac Gar Fac DSF Machines Disabled 19 | . 2 . 1 2 5 . . 2 7 . . Max in Single Turn 1 | . 1 . 1 1 1 . . 1 1 . . Garrison Relay 9 | . . . . . 4 . . . 5 . . Machines Repaired . | . . . . . . . . . . . . Machines Dismantled . | . . . . . . . . . . . . Machines Sabotaged . | . . . . . . . . . . . . Overloaded Fab Kills . | . . . . . . . . . . . . Hacking | -11 -10 -10 -10 -8 -8 -7 -7 -7 -7 -7 -7 --------- Run | Yrd Mat Min Sub Mat Gar Fac Was Fac Gar Fac DSF Machines Accessed 32 | . 7 1 2 4 4 4 . 5 4 1 . Terminals 24 | . 6 . . 3 4 4 . 2 4 1 . Fabricators . | . . . . . . . . . . . . Repair Stations 1 | . . . . . . . . 1 . . . Recycling Units 1 | . 1 . . . . . . . . . . Scanalyzers 1 | . . . . . . . . 1 . . . Garrison Access 2 | . . . . 1 . . . 1 . . . Total Hacks 84 | . 26 1 5 9 7 8 . 21 6 1 . Successful 42 | . 11 1 5 4 3 4 . 10 3 1 . Failed 42 | . 15 . . 5 4 4 . 11 3 . . Catastrophic 9 | . 1 . . 4 1 2 . 1 . . . Database Lockouts . | . . . . . . . . . . . . Manual 36 | . 18 . . 7 . 2 . 9 . . . Terminals 63 | . 24 . . 6 7 8 . 11 6 1 . Fabricators . | . . . . . . . . . . . . Repair Stations 3 | . . . . . . . . 3 . . . Recycling Units 2 | . 2 . . . . . . . . . . Scanalyzers 4 | . . . . . . . . 4 . . . Garrison Access 6 | . . . . 3 . . . 3 . . . Terminal Hacks 30 | . 7 1 5 . 3 4 . 6 3 1 . Record 4 | . . . 4 . . . . . . . . Part Schematic 5 | . 3 . . . . 1 . 1 . . . Robot Schematic 1 | . 1 . . . . . . . . . . Prototype ID Bank 2 | . 2 . . . . . . . . . . Open Door 2 | . . 1 . . . . . . 1 . . Open DSF 1 | . . . . . . . . . . 1 . Branch Access Points 1 | . . . . . . 1 . . . . . Emergency Access Points 2 | . . . . . 1 . . . 1 . . Terminal Index 1 | . . . . . . . . 1 . . . Unreport Threat 1 | . . . . . . 1 . . . . . Locate Traps 2 | . 1 . . . . 1 . . . . . Hauler Manifests 1 | . . . . . . . . 1 . . . Registered Components 1 | . . . . . . . . 1 . . . Zone Layout 2 | . . . . . . . . 2 . . . Garrison Registry 1 | . . . . . 1 . . . . . . Patrol Navigation 1 | . . . . . . . . . 1 . . Security Stations 1 | . . . . . 1 . . . . . . Proto ID Catalog 1 | . . . 1 . . . . . . . . Fabricator Hacks . | . . . . . . . . . . . . Repair Station Hacks . | . . . . . . . . . . . . Recycling Unit Hacks . | . . . . . . . . . . . . Scanalyzer 2 | . . . . . . . . 2 . . . Insert Component 1 | . . . . . . . . 1 . . . Analyze 1 | . . . . . . . . 1 . . . Garrison Access Hacks 2 | . . . . 1 . . . 1 . . . Unlock Access 2 | . . . . 1 . . . 1 . . . Unauthorized Hacks 8 | . 4 . . 3 . . . 1 . . . Terminals 6 | . 3 . . 3 . . . . . . . Operators 1 | . 1 . . . . . . . . . . Skim 5 | . 2 . . 3 . . . . . . . Fabricators . | . . . . . . . . . . . . Repair Stations . | . . . . . . . . . . . . Recycling Units 1 | . 1 . . . . . . . . . . Tunnel 1 | . 1 . . . . . . . . . . Scanalyzers . | . . . . . . . . . . . . Garrison Access 1 | . . . . . . . . 1 . . . Reprogram 1 | . . . . . . . . 1 . . . Data Cores Recovered 2 | . . . . 1 . . . 1 . . . Used 1 | . . . . 1 . . . . . . . Hacking Detections 26 | . 7 . . 4 4 4 . 4 3 . . Full Trace Events 6 | . 3 . . . 1 . . 1 1 . . Feedback Events 1 | . 1 . . . . . . . . . . Corruption 1 | . 1 . . . . . . . . . . Feedback Blocked . | . . . . . . . . . . . . Robot Schematics Acquired 1 | . 1 . . . . . . . . . . Robots Built . | . . . . . . . . . . . . Authchips . | . . . . . . . . . . . . Time . | . . . . . . . . . . . . Total Robot Build Rating . | . . . . . . . . . . . . Part Schematics Acquired 6 | . 3 . . . . 1 . 2 . . . Parts Built . | . . . . . . . . . . . . Authchips . | . . . . . . . . . . . . Time . | . . . . . . . . . . . . Total Part Build Rating . | . . . . . . . . . . . . Parts Repaired . | . . . . . . . . . . . . Time . | . . . . . . . . . . . . Parts Recycled . | . . . . . . . . . . . . Recycled Matter . | . . . . . . . . . . . . Retrieved Matter . | . . . . . . . . . . . . Retrieved Components . | . . . . . . . . . . . . Parts Scanalyzed 1 | . . . . . . . . 1 . . . Part Schematics Acquired 1 | . . . . . . . . 1 . . . Parts Damaged . | . . . . . . . . . . . . Bothacking | -11 -10 -10 -10 -8 -8 -7 -7 -7 -7 -7 -7 ------------ Run | Yrd Mat Min Sub Mat Gar Fac Was Fac Gar Fac DSF Used RIF Installer . | . . . . . . . . . . . . Robots Hacked 4 | . . . . . . 4 . . . . . Non-combat 4 | . . . . . . 4 . . . . . Combat . | . . . . . . . . . . . . Robot Hacks Applied 5 | . . . . . . 5 . . . . . parse_system 4 | . . . . . . 4 . . . . . find_chute 1 | . . . . . . 1 . . . . . Relay Couplers Released 43 | . . . . . 17 . . . 26 . . Machine Destruction 39 | . . . . . 17 . . . 22 . . Programmers 4 | . . . . . . . . . 4 . . Fabnet Peak Effective % . | . . . . . . . . . . . . Robots Rewired 6 | . . . . . . 4 . . 2 . . Allies Hacked . | . . . . . . . . . . . . Hacks Repelled . | . . . . . . . . . . . . Allies | -11 -10 -10 -10 -8 -8 -7 -7 -7 -7 -7 -7 -------- Run | Yrd Mat Min Sub Mat Gar Fac Was Fac Gar Fac DSF Total Allies 32 | . . 3 . . 1 4 20 2 2 . . Largest Group 19 | . . 3 3 . 1 4 19 14 12 1 1 Highest-Rated Group 465 | . . 40 40 . 31 92 465 352 329 27 27 Highest-Rated Ally 40 | . . 16 16 . 31 40 40 31 31 27 27 Initial Warlord ECA Mod 60 | . . . . . . 7 7 7 7 16 16 Total Orders . | . . . . . . . . . . . . Ally Attacks 280 | . . . 26 . 13 . 119 69 53 . . Total Damage 5080 | . . . 302 . 190 . 2712 806 1070 . . Kills 20 | . . . 1 . 1 . 7 8 3 . . Allies Corrupted . | . . . . . . . . . . . . Allies Melted . | . . . . . . . . . . . . Intel | -11 -10 -10 -10 -8 -8 -7 -7 -7 -7 -7 -7 ------- Run | Yrd Mat Min Sub Mat Gar Fac Was Fac Gar Fac DSF Active Infowar (turns) 884 | 12 785 . . . . . . 52 35 . . Seismic 884 | 12 785 . . . . . . 52 35 . . Robot Analysis Total . | . . . . . . . . . . . . Derelict Logs Recovered 4 | . . 1 3 . . . . . . . . Drone Launches . | . . . . . . . . . . . . Drone Recoveries . | . . . . . . . . . . . . Exploration | -11 -10 -10 -10 -8 -8 -7 -7 -7 -7 -7 -7 ------------- Run | Yrd Mat Min Sub Mat Gar Fac Was Fac Gar Fac DSF Turns Passed 10889 | 130 1158 530 2359 598 2047 355 1041 908 1691 3 69 Spaces Moved 7876 | 93 1018 542 2039 352 1176 262 818 583 967 3 23 Core 101 | 2 . . . . . . 99 . . . . Treads . | . . . . . . . . . . . . Legs . | . . . . . . . . . . . . Wheels 7775 | 91 1018 542 2039 352 1176 262 719 583 967 3 23 Hover . | . . . . . . . . . . . . Flight . | . . . . . . . . . . . . Fastest Speed 50 | 50 80 95 95 110 120 105 50 126 123 123 123 Average Speed 109 | 79 94 95 95 142 127 106 111 126 123 123 133 Slowest Speed 205 | 80 95 95 95 155 155 120 126 126 131 123 205 Overloaded Moves . | . . . . . . . . . . . . Propulsion Burnouts . | . . . . . . . . . . . . Robots Hopped . | . . . . . . . . . . . . Potential Cave-ins . | . . . . . . . . . . . . Cave-ins Triggered . | . . . . . . . . . . . . Exploration Rate (%) 58 | 5 98 98 87 26 94 8 96 15 86 . 29 Regions Visited 11 Branch Regions 2 Pre-discovered Areas 4 | . 1 1 2 . . . . . . . . Known Exits Taken 4 | . . . 1 1 . . . 1 . 1 . Unknown Exits Taken 3 | 1 1 1 . . . . . . . . . Scrap Searched 7 | . . 1 6 . . . . . . . . Spaces Dug 9 | . . . . . 3 . . . 6 . . Terrain Destroyed 16 | . . . . 6 3 . . 1 6 . . Melee 9 | . . . . . 3 . . . 6 . . Projectile 7 | . . . . 6 . . . 1 . . . AOE . | . . . . . . . . . . . . Terrain Rammed . | . . . . . . . . . . . . Walls Destroyed . | . . . . . . . . . . . . Machines Disabled . | . . . . . . . . . . . . Actions | -11 -10 -10 -10 -8 -8 -7 -7 -7 -7 -7 -7 --------- Run | Yrd Mat Min Sub Mat Gar Fac Was Fac Gar Fac DSF Total 9321 | 124 1135 558 2283 417 1524 329 921 718 1261 2 49 Wait 431 | . 33 15 111 20 73 38 46 76 19 . . Move 7866 | 92 1017 541 2038 351 1174 262 817 583 966 2 23 Hop . | . . . . . . . . . . . . Pick Up 143 | 11 15 1 11 16 19 5 21 9 30 . 5 Fast Attach 22 | 7 2 . . 1 . . 9 1 . . 2 Attach 30 | . . . 1 4 9 2 4 . 9 . 1 Detach 1 | . . . . . . . 1 . . . . Swap 115 | . 8 . 24 3 29 7 6 8 26 . 4 Drop 112 | 3 16 1 11 4 27 3 5 10 24 . 8 Fire 356 | 11 44 . 85 18 77 1 12 31 71 . 6 Melee 81 | . . . 2 . 44 11 . . 24 . . Ram . | . . . . . . . . . . . . Kick . | . . . . . . . . . . . . Crush . | . . . . . . . . . . . . Escape Stasis 152 | . . . . . 72 . . . 80 . . Rewire 12 | . . . . . . . . . 12 . . Trap . | . . . . . . . . . . . . Miscellaneous . | . . . . . . . . . . . . Route ------- -11/Scrapyard -10/Materials (discovered 5 exits: [*Mat x3] / *Min x2) -10/Mines (discovered 3 exits: [*Mat x2] / *Sub) -10/Subcaves (discovered 3 exits: *Mat x2 / Rec) -8/Materials (discovered 2 exits: *Fac / Gar) -8/Garrison (discovered 3 exits: *Fac x3) -7/Factory (discovered 2 exits: Low x2) -7/Waste -7/Factory (discovered 2 exits: *Fac / Gar) -7/Garrison (discovered 3 exits: *Fac x3) -7/Factory -7/DSF History --------- Turn | Location | Event 10 | -11/Scrapyard | Discovered new exit (range 15) 131 | -11/Scrapyard | Entered Materials 293 | -10/Materials | Discovered new exit (range 11) 300 | -10/Materials | Build established: Mutant 439 | -10/Materials | Discovered new exit (range 6) 632 | -10/Materials | Discovered new exit (range 13) 744 | -10/Materials | Discovered new exit (range 13) 904 | -10/Materials | Discovered new exit (range 12) 1289 | -10/Materials | Entered Mines 1299 | -10/Mines | Met a Derelict shopkeep closing up shop 1385 | -10/Mines | Received a Rocket Launcher from a helpful Derelict 1411 | -10/Mines | Discovered new exit (range 11) 1451 | -10/Mines | Discovered new exit (range 5) 1553 | -10/Mines | Found a Scrap Suit stashed away for nefarious purposes 1635 | -10/Mines | Assisted by bots powering up and referring to "LRC-V3" 1664 | -10/Mines | Learned location of Zion (-6) 1799 | -10/Mines | Discovered new exit (range 6) 1819 | -10/Mines | Entered Subcaves 1819 | -10/Subcaves | Accompanied by 3 allies 1942 | -10/Subcaves | Shifting Twisted Machinery released Sub. Machine Gun 1946 | -10/Subcaves | Shifting Twisted Machinery released Sub. Laser 1991 | -10/Subcaves | Discovered new exit (range 11) 1996 | -10/Subcaves | Shifting Twisted Machinery released Battle Cannon 1996 | -10/Subcaves | Shifting Twisted Machinery released Mak. Power Source 2144 | -10/Subcaves | Visited Clippyterm 2146 | -10/Subcaves | Identified exit to Materials 2146 | -10/Subcaves | Identified exit to Recycling 2146 | -10/Subcaves | Learned Factory stockpile data 2270 | -10/Subcaves | Shifting Twisted Machinery released Flamer 2284 | -10/Subcaves | Shifting Twisted Machinery released Spk. Treads 2906 | -10/Subcaves | Met a Zionite searching for "candidates" 3357 | -10/Subcaves | Disturbed a concealed Subdweller 3564 | -10/Subcaves | Visited 4L-MR0's lab 3577 | -10/Subcaves | Found Meta Core 3857 | -10/Subcaves | Core integrity fell below 50% 3900 | -10/Subcaves | Learned Materials stockpile data 4178 | -10/Subcaves | Entered Materials 4178 | -8/Materials | Evolved 4 slots: Utility x1, Weapon x3 4524 | -8/Materials | Discovered new exit (range 5) 4583 | -8/Materials | Build established: Scavenger-Tank 4631 | -8/Materials | Identified exit to Garrison 4776 | -8/Materials | Entered Garrison 4802 | -8/Garrison | Triggered checkpoint 4973 | -8/Garrison | Rescued a captive Derelict 5017 | -8/Garrison | Garrison Relay disabled 5497 | -8/Garrison | Discovered new exit (range 12) 5513 | -8/Garrison | Learned Factory security intel 5532 | -8/Garrison | Garrison Relay disabled 5743 | -8/Garrison | Discovered new exit (range 12) 5849 | -8/Garrison | Garrison Relay disabled 6073 | -8/Garrison | Lost 3 parts (2n1u) 6179 | -8/Garrison | Garrison Relay disabled 6241 | -8/Garrison | Discovered new exit (range 10) 6312 | -8/Garrison | Triggered checkpoint 6398 | -8/Garrison | Discovered new exit (range 11) 6398 | -8/Garrison | Discovered new exit (range 47) 6398 | -8/Garrison | Discovered new exit (range 81) 6704 | -8/Garrison | Attempted to access garrison exit controls, blocked by remote lockdown 6797 | -8/Garrison | Build established: Scavenger-Gunner 6823 | -8/Garrison | Entered Factory 6823 | -7/Factory | Evolved 2 slots: Propulsion x1, Utility x1 7058 | -7/Factory | Identified exit to Lower Caves 7178 | -7/Factory | Sucked down chute 7178 | -7/Factory | Entered Waste 7179 | -7/Waste | Met a frightened Derelict 7190 | -7/Waste | Spotted C-40 Crusher 7207 | -7/Waste | Spotted C-40 Crusher 7211 | -7/Waste | Spotted C-40 Crusher 7212 | -7/Waste | Spotted C-40 Crusher 7223 | -7/Waste | Allies destroyed C-40 Crusher 7244 | -7/Waste | Spotted C-40 Crusher 7253 | -7/Waste | 4 allies followed down the chute 7260 | -7/Waste | Crushed by Compactor (1 part destroyed, 2 dropped) 7310 | -7/Waste | Lost 5 allies 7325 | -7/Waste | Crushed by Compactor (1 part destroyed, 1 dropped) 7330 | -7/Waste | Crushed by Compactor (1 part destroyed, 2 dropped) 7371 | -7/Waste | Crushed by Compactor (1 part destroyed, 2 dropped) 7371 | -7/Waste | Crushed by Compactor (1 part destroyed, 2 dropped) 7376 | -7/Waste | Spotted C-40 Crusher 7381 | -7/Waste | Warlord forces began an assault 7388 | -7/Waste | Allies destroyed C-40 Crusher 7390 | -7/Waste | Allies destroyed C-40 Crusher 7392 | -7/Waste | Allies destroyed C-40 Crusher 7398 | -7/Waste | Allies destroyed C-40 Crusher 7660 | -7/Waste | Discovered new exit (range 14) 7846 | -7/Waste | Build established: Derelict-Tank 7850 | -7/Waste | Found Hvy. Reflective Plating 8219 | -7/Waste | Entered Factory 8219 | -7/Factory | Accompanied by 14 allies 8848 | -7/Factory | Discovered new exit (range 3) 8899 | -7/Factory | Identified exit to Factory 9019 | -7/Factory | Garrison activated, responded to threat 9055 | -7/Factory | Identified exit to Garrison 9068 | -7/Factory | Lost 4 allies 9127 | -7/Factory | Entered Garrison 9127 | -7/Garrison | Accompanied by 12 allies 9209 | -7/Garrison | Lost 6 allies 9305 | -7/Garrison | Triggered checkpoint 9326 | -7/Garrison | Garrison Relay disabled 9423 | -7/Garrison | Triggered checkpoint 9425 | -7/Garrison | Triggered checkpoint 9498 | -7/Garrison | Destroyed 10 combat bots 9506 | -7/Garrison | Lost 6 allies 9555 | -7/Garrison | Lost 8 parts (3n5w) 9562 | -7/Garrison | Core integrity fell below 50% 9623 | -7/Garrison | Triggered checkpoint 9747 | -7/Garrison | Discovered new exit (range 11) 9754 | -7/Garrison | Build established: Scavenger-Gunner 9773 | -7/Garrison | Triggered checkpoint 9809 | -7/Garrison | Garrison Relay disabled 9824 | -7/Garrison | Garrison Relay disabled 10199 | -7/Garrison | Triggered checkpoint 10227 | -7/Garrison | Garrison Relay disabled 10268 | -7/Garrison | Discovered new exit (range 3) 10689 | -7/Garrison | Triggered checkpoint 10697 | -7/Garrison | Core integrity fell below 20% 10758 | -7/Garrison | Garrison Relay disabled 10808 | -7/Garrison | Discovered new exit (range 8) 10818 | -7/Garrison | Entered Factory 10818 | -7/Factory | Accompanied by 1 ally 10821 | -7/Factory | Identified exit to DSF 10821 | -7/Factory | Entered DSF 10821 | -7/DSF | Accompanied by 1 ally 10874 | -7/DSF | Additional patrols routed to DSF 10890 | -7/DSF | Self-destructed Last Messages --------------- 10850_ Acquired Autogun. 10852_ Dropped Imp. Heat Sink. 10853_ Acquired Autogun. 10863_ Slug penetrates Wall. 10865_ H-61 Shepherd calls for reinforcements. 10865_ ALERT: Hostile activity reported, dispatching reinforcements to area. 10867_ Slug penetrates H-61 Shepherd. 10868_ Wheel destroyed. 10870_ Slug penetrates H-61 Shepherd. 10873_ Com. Wheel destroyed. 10873_ Dropped Com. Wheel. 10874_ DSF_008 integrity compromised, routing additional patrols. 10874_ Slug penetrates H-61 Shepherd. 10875_ Autogun destroyed. 10875_ Hvy. Machine Gun blasted off. 10877_ H-61 Shepherd destroyed. 10880_ Acquired Com. Wheel. 10883_ Acquired Hvy. Machine Gun. 10889_ I7-LCB(m) fits Backup Propulsion III on Cogmind. Map ----- +----------------------------------------------------+ | | | ?????????????????????????????????????? | | ?????????????????????????????????????? | | ?????????????????????????????????????? | | ?????????????????????????????????????? | | ?????????????????????????????????????? | | ?????????????????????????????????????? | | ?????????????????????????????????????? | | ?????????????????????????????????????? | | ?????????????????????????????????????? | | ?????????????????????????????????????? | | ????????? ??????????????????????????? | | ????????" ??????????????????????????? | | ????????# ??????????????????????????? | | ????????# #?????????????????????????? | | ????????! !?????????????????????????? | | ????????! !?????????????????????????? | | ???????## #?????????????????????????? | | ???????#! !?????????????????????????? | | ???????#! !?????????????????????????? | | ????????! !?????????????????????????? | | ??????### ######????????????????????? | | ??????# ##]]]#??!#????????????????? | | ??????# ##]]]#!!!##a= a#?????????? | | ?????## % !=! ????????? | | ?????#; m@ !%* ????????? | | ??????# =!! ????????? | | ??????# % ##!!!#[[[##a! a#?????????? | | ??????# ##!!!#??[#????????????????? | | ??????### ######????????????????????? | | ???????# [[#???????????????????????? | | ???????# [[#???????????????????????? | | ???????# [[#???????????????????????? | | ???????## ###???????????????????????? | | ???????#[ ! #???????????????????????? | | ???????#[ ]]*#???????????????????????? | | ???????## ###???????????????????????? | | ??????### !##???#????????????????????? | | ????###"" !%##[[# ##???????????????? | | ????""""" = ] ??????????? | | ????"##"" ??????????? | | ??????#"""""## #[[[#!! ??????????? | | ??????#"""""#?###??##????????????????? | | ??????####"##????????????????????????? | | ?????????#"#?????????????????????????? | | ?????????""#?????????????????????????? | | ?????????????????????????????????????? | | ?????????????????????????????????????? | | ?????????????????????????????????????? | | ?????????????????????????????????????? | +----------------------------------------------------+ Best States ------------- Heat Dissipation 102 Energy Generation 21 Energy Capacity 325 Matter Stores 300 Matter Capacity 300 Sight Range 16 Terrain Scan Density 10 Armor Coverage 225 Propulsion Shielding 66 Weapon Cycling 20 Evasion (%) 50 Targeting Accuracy 8 Offensive Hacking 10 Item Schematics ----------------- Assault Rifle | -10/Materials | Hacked Wheel | -10/Materials | Hacked Hcp. Storage Unit | -10/Materials | Hacked Arm. Huge Wheel | -7/Factory | Hacked Recoil Stabilizer | -7/Factory | Hacked Imp. Weapon Cycler | -7/Factory | Scanalyzed Robot Schematics ------------------ M-13 Machinist | -10/Materials | Hacked Fabricated ------------ Nothing Repaired ---------- Nothing Alien Tech Used ----------------- None Achievements -------------- None Challenges ------------ None Game ------ Seed StealthBarrageMegatreads Manual? 0 Play Time 01:24:21 Cumulative 1175.9 hours Start 2025.08.02 @ 13:55:16 End 2025.08.02 @ 16:18:46 Sessions 5 Manual Loads 0 Difficulty Rogue Special Mode None Game No. 568 Rogue 568 Adventurer 0 Explorer 0 Win Type - Total 23 Types 10/4/3/0/1/1/2/2/0/0 Lore% 90 Gallery% 90 Achievement% 84 Wizard Run 0 Options --------- Layout 0 ASCII 0 Keyboard 0 Movement Numpad Keybinds 0 Fullscreen 2 Font 24/Smallcaps Map View 76x50 Zoom Use 0% Tactical HUD 1 Map Filters NONE Filters SHIFT_HUE(315) Steam 1 RUN: 8ef654cb-c4fd-4227-bf56-4b8c70a0f2e7